bitfinex-derivatives/quotes_SOLF0:USTF0_20241206
["timestamp","ask_amount","ask_price","bid_price","bid_amount"]
[1733515153634,2.0794,240.03,239.99,1.04071037]
[1733515153835,2.0794,240.03,239.98,8.48463435]
[1733515154036,2.0794,240.03,239.99,1.04070801]
[1733515154335,2.0794,240.03,239.98,8.48463435]
[1733515154528,2.0794,240.03,240.0,6.40493435]
[1733515155131,2.0793,240.05,240.02,6.40493435]
[1733515155332,8.50493435,240.1,240.02,6.40493435]
[1733515155528,8.50493435,240.1,240.01,2.1]
[1733515156633,2.0792,240.06,240.01,4.1795]
[1733515157033,6.40493435,240.08,240.01,4.1795]
[1733515158640,2.0792,240.05,240.01,4.1795]
[1733515160433,2.0795,240.02,240.01,2.1]
[1733515160735,6.40493435,240.06,240.01,2.1]
[1733515161635,8.50493435,240.1,240.01,2.1]
[1733515162143,2.079,240.08,240.02,6.40493435]
[1733515162335,6.40493435,240.1,240.02,6.40493435]
[1733515163438,1.3372,240.11,240.01,8.50493435]
[1733515163439,2.0792,240.05,240.01,8.50493435]
[1733515164640,1.3372,240.11,240.04,2.0793]
[1733515164941,1.3372,240.11,240.06,6.40493435]
[1733515166644,2.0789,240.09,240.06,6.40493435]
[1733515167441,2.0789,240.09,240.04,8.48423435]
[1733515169738,2.079,240.08,240.04,8.48423435]
[1733515171947,2.079,240.08,240.06,6.40493435]
[1733515172344,2.079,240.08,240.04,8.48423435]
[1733515173148,2.079,240.08,240.05,2.1]
[1733515174340,6.40493435,240.11,239.78,3.12182615]
[1733515174546,6.40493435,240.11,239.97,2.0798]
[1733515174547,6.40493435,240.04,239.97,2.0798]
[1733515175644,2.0795,240.02,239.97,2.0798]
[1733515176047,2.0797,240.0,239.95,2.08]
[1733515176252,2.0797,240.0,239.95,8.48493435]
[1733515177857,2.0798,239.99,239.95,8.48493435]
[1733515179961,2.0798,239.99,239.97,6.40493435]
[1733515181356,2.0796,240.0,239.97,6.40493435]
[1733515185065,6.40493435,240.06,239.96,6.40493435]
[1733515186168,2.0797,240.0,239.96,6.40493435]
[1733515186869,6.40493435,240.06,239.96,6.40493435]
[1733515186870,2.0799,239.98,239.96,6.40493435]
[1733515187271,6.40493435,240.02,239.94,10.37728435]
[1733515187472,2.0799,239.97,239.94,10.37728435]
[1733515188269,2.0801,239.95,239.94,10.37728435]
[1733515188971,2.0801,239.95,239.94,3.97235]
[1733515189169,2.0809,239.86,239.82,6.40493435]
[1733515190271,2.0809,239.86,239.84,6.40493435]
[1733515190677,2.0804,239.91,239.85,2.0809]
[1733515190880,2.1,239.94,239.88,6.40493435]
[1733515191282,2.1,239.94,239.86,6.40493435]
[1733515192472,6.40493435,239.95,239.86,6.40493435]
[1733515192670,2.0806,239.9,239.86,6.40493435]
[1733515195783,2.0804,239.92,239.88,6.40493435]
[1733515195985,6.40493435,239.95,239.88,6.40493435]
[1733515196973,2.0805,239.9,239.88,6.40493435]
[1733515198985,2.0805,239.9,239.86,8.48573435]
[1733515199186,1.3928,240.02,239.88,6.40493435]
[1733515199384,6.40493435,239.98,239.9,8.48543435]
[1733515199679,6.40493435,239.98,239.9,6.40493435]
[1733515202587,6.40493435,240.0,239.92,6.40493435]
[1733515202885,6.40493435,240.0,239.92,8.48523435]
[1733515203085,2.1,240.01,239.92,6.40493435]
[1733515203284,6.40493435,240.02,239.94,6.40493435]
[1733515203590,6.40493435,240.02,239.92,2.1]
[1733515203785,6.40493435,240.02,239.94,6.40493435]
[1733515204289,6.40493435,240.04,239.96,6.40493435]
[1733515204490,2.1,240.08,239.98,6.40493435]
[1733515204687,6.40493435,240.07,239.98,6.40493435]
[1733515204986,6.40493435,240.08,240.0,8.48453435]
[1733515205386,6.40493435,240.06,239.98,1.4083]
[1733515205584,2.0795,240.02,239.98,3.488]
[1733515206090,2.0796,240.01,239.98,1.4083]
[1733515206885,6.40493435,240.02,239.94,2.0801]
[1733515207985,2.0798,239.99,239.94,2.0801]
[1733515208380,2.1,240.05,239.95,6.40493435]
[1733515208585,2.0796,240.01,239.95,6.40493435]
[1733515209186,2.0796,240.0,239.96,2.0799]
[1733515212390,8.50493435,240.05,239.95,6.40493435]
[1733515212692,2.0797,239.99,239.95,8.48503435]
[1733515214692,2.0797,239.99,239.95,2.0801]
[1733515214995,2.0797,239.99,239.95,8.48503435]
[1733515218497,2.0798,239.98,239.94,2.0802]
[1733515219800,2.0798,239.98,239.95,6.40493435]
[1733515220392,2.0797,240.0,239.96,2.08]
[1733515220589,2.0797,240.0,239.97,6.40493435]
[1733515223297,6.40493435,240.07,239.99,6.40493435]
[1733515223502,8.50493435,240.09,239.99,6.40493435]
[1733515223696,8.50493435,240.09,239.99,8.50493435]
[1733515224101,2.0794,240.03,239.99,10.58463435]
[1733515224702,2.0789,240.08,240.01,8.48443435]
[1733515224902,0.33772,240.11,240.03,6.40493435]
[1733515224903,6.74265435,240.11,240.03,6.40493435]
[1733515225502,2.0791,240.07,240.03,6.40493435]
[1733515225710,6.74265435,240.11,240.0,1.2783]
[1733515225711,6.40493435,240.04,240.0,1.2783]
[1733515225910,6.40493435,240.04,239.96,6.40493435]
[1733515226202,6.40493435,240.02,239.95,2.1]
[1733515226902,2.0798,239.99,239.95,2.1]
[1733515227104,6.40493435,240.02,239.95,2.1]
[1733515227606,6.40493435,240.04,239.96,6.40493435]
[1733515228795,6.40493435,240.07,239.98,6.40493435]
[1733515228999,2.0795,240.02,239.98,8.48473435]
[1733515229197,2.0795,240.02,239.98,6.40493435]
[1733515230403,2.0794,240.03,239.98,8.48473435]
[1733515230908,2.0795,240.02,239.98,8.48473435]
[1733515234000,2.0795,240.02,239.98,2.0798]
[1733515237403,2.0796,240.01,239.98,2.0798]
[1733515238709,2.0796,240.01,239.97,2.0799]
[1733515239010,2.0796,240.01,239.98,6.40493435]
[1733515242204,6.40493435,240.03,239.96,2.08]
[1733515242404,6.40493435,239.99,239.93,1.3388]
[1733515242609,2.0803,239.93,239.65,20.47720172]
[1733515242807,6.40493435,239.97,239.88,9.79103435]
[1733515243106,6.40493435,239.97,239.88,11.89103435]
[1733515243313,2.0804,239.92,239.88,11.89103435]
[1733515245117,6.40493435,239.99,239.9,6.40493435]
[1733515246619,2.0803,239.93,239.9,6.40493435]
[1733515249517,2.0803,239.93,239.9,8.48543435]
[1733515250311,2.0799,239.97,239.91,2.0804]
[1733515250516,2.1,240.0,239.91,2.0804]
[1733515250715,6.40493435,239.99,239.91,2.0804]
[1733515250920,2.0801,239.96,239.91,2.0804]
[1733515251316,6.40493435,239.97,239.9,6.40493435]
[1733515252016,2.0802,239.94,239.9,6.40493435]
[1733515253923,2.0802,239.94,239.9,8.48543435]
[1733515255915,2.0802,239.94,239.92,6.40493435]
[1733515256616,2.0802,239.94,239.9,8.48543435]
[1733515259421,2.0801,239.95,239.92,6.40493435]
[1733515261828,2.0802,239.94,239.92,6.40493435]
[1733515262024,2.0802,239.94,239.9,2.0805]
[1733515262025,2.0802,239.94,239.9,8.48543435]
[1733515265428,2.1,240.0,239.82,2.7122]
[1733515265631,2.0806,239.89,239.84,2.081]
[1733515265832,6.40493435,239.96,239.87,6.40493435]
[1733515266730,6.40493435,239.96,239.87,8.48563435]
[1733515266731,2.0804,239.91,239.87,8.48563435]
[1733515267042,2.0804,239.91,239.87,6.40493435]
[1733515268235,2.0804,239.91,239.87,8.48563435]
[1733515269747,2.0802,239.93,239.89,6.40493435]
[1733515269948,1.3852,240.05,239.91,6.40493435]
[1733515270247,6.40493435,240.0,239.91,6.40493435]
[1733515270541,2.08,239.95,239.91,8.48523435]
[1733515271741,6.40493435,240.0,239.91,8.48523435]
[1733515272742,2.08,239.96,239.91,8.48523435]
[1733515273041,6.40493435,240.0,239.91,8.48523435]
[1733515273943,6.40493435,240.0,239.93,6.40493435]
[1733515274538,6.40493435,239.96,239.83,1.3512]
[1733515274743,2.0805,239.89,239.85,6.40493435]
[1733515275050,6.40493435,239.94,239.85,6.40493435]
[1733515276650,6.40493435,239.92,239.84,2.1]
[1733515276956,2.0807,239.85,239.84,2.1]
[1733515277248,2.0807,239.85,239.83,6.40493435]
[1733515277850,2.0807,239.85,239.82,2.7122]
[1733515278254,2.0808,239.84,239.82,2.7122]
[1733515281946,2.0809,239.83,239.79,2.0812]
[1733515282146,6.40493435,239.88,239.78,2.1]
[1733515282363,6.40493435,239.86,239.78,6.40493435]
[1733515282654,2.0812,239.8,239.78,6.40493435]
[1733515282849,6.40493435,239.86,239.76,6.40493435]
[1733515283151,2.0815,239.77,239.72,2.0818]
[1733515283351,6.40493435,239.8,239.73,2.71309292]
[1733515283553,6.40493435,239.78,239.71,2.1]
[1733515283753,2.082,239.71,239.69,2.7768]
[1733515284054,2.082,239.71,239.69,1.4028]
[1733515284849,2.0817,239.74,239.69,1.4028]
[1733515285154,6.40493435,239.78,239.69,9.88983435]
[1733515285353,2.0814,239.78,239.73,6.40493435]
[1733515285649,8.50493435,239.84,239.75,6.40493435]
[1733515285850,6.40493435,239.86,239.77,6.40493435]
[1733515286248,6.40493435,239.86,239.77,8.48633435]
[1733515287746,2.081,239.83,239.77,8.48633435]
[1733515291052,6.40493435,239.86,239.77,8.48633435]
[1733515291247,2.081,239.82,239.77,8.48633435]
[1733515292454,2.081,239.82,239.77,6.40493435]
[1733515293454,2.081,239.82,239.77,8.48633435]
[1733515294253,6.40493435,239.86,239.77,8.48633435]
[1733515294452,2.0809,239.83,239.77,8.48633435]
[1733515294659,6.40493435,239.86,239.77,6.40493435]
[1733515294856,2.0808,239.84,239.79,2.0812]
[1733515297861,2.0809,239.83,239.78,2.0813]
[1733515299760,1.2972,239.9,239.78,6.40493435]
[1733515299955,6.40493435,239.88,239.8,6.40493435]
[1733515300952,6.40493435,239.88,239.76,1.337]
[1733515300953,6.40493435,239.86,239.78,6.40493435]
[1733515301349,6.40493435,239.84,239.76,7.74193435]
[1733515302757,2.0811,239.81,239.77,2.0814]
[1733515303353,2.081,239.82,239.77,2.0814]
[1733515310264,2.0809,239.84,239.77,8.48633435]
[1733515310464,8.50493435,239.86,239.77,8.48633435]
[1733515310965,2.0811,239.82,239.77,8.48633435]
[1733515313263,2.0814,239.78,239.74,4.1817]
[1733515313468,2.0814,239.78,239.74,10.58663435]
[1733515314563,2.0814,239.78,239.76,6.40493435]
[1733515315164,6.40493435,239.84,239.76,6.40493435]
[1733515315759,2.0813,239.79,239.76,6.40493435]
[1733515315964,6.40493435,239.84,239.76,6.40493435]
[1733515317371,6.40493435,239.84,239.74,10.58663435]
[1733515318766,2.0814,239.78,239.76,6.40493435]
[1733515323270,6.40493435,239.84,239.74,8.50493435]
[1733515323271,2.0814,239.77,239.74,8.50493435]
[1733515326070,1.2972,239.9,239.7,1.3498]
[1733515326071,6.40493435,239.8,239.7,1.3498]
[1733515326271,8.50493435,239.8,239.7,7.75473435]
[1733515326673,2.0814,239.77,239.7,7.75473435]
[1733515326868,8.50493435,239.8,239.7,7.75473435]
[1733515327776,2.0818,239.74,239.7,7.75473435]
[1733515328076,8.50493435,239.8,239.7,7.75473435]
[1733515328477,6.40493435,239.78,239.69,7.80773435]
[1733515329472,6.40493435,239.78,239.69,3.4849]
[1733515329680,6.40493435,239.78,239.7,6.40493435]
[1733515330276,2.1,239.79,239.72,6.40493435]
[1733515330773,2.0814,239.77,239.72,6.40493435]
[1733515330977,2.1,239.79,239.72,6.40493435]
[1733515331177,2.1,239.79,239.74,6.40493435]
[1733515331377,2.0816,239.76,239.74,6.40493435]
[1733515331580,2.1,239.79,239.74,6.40493435]
[1733515331769,2.1,239.83,239.76,6.40493435]
[1733515332175,2.1,239.85,239.78,6.40493435]
[1733515332371,1.2972,239.9,239.8,6.40493435]
[1733515332682,6.40493435,239.88,239.8,6.40493435]
[1733515333179,2.0809,239.83,239.8,6.40493435]
[1733515333976,6.40493435,239.88,239.8,6.40493435]
[1733515334377,6.40493435,239.86,239.78,6.40493435]
[1733515335581,6.40493435,239.86,239.78,8.48623435]
[1733515335582,2.081,239.83,239.78,8.48623435]
[1733515338585,8.50493435,239.87,239.78,2.0813]
[1733515338586,2.081,239.82,239.78,2.0813]
[1733515338881,6.40493435,239.83,239.77,1.4029]
[1733515339378,6.40493435,239.85,239.78,2.0813]
[1733515339577,2.1,239.87,239.78,6.40493435]
[1733515339783,2.0809,239.83,239.78,6.40493435]
[1733515340481,2.0809,239.83,239.78,8.48623435]
[1733515341084,2.0812,239.8,239.76,8.48643435]
[1733515342974,2.0813,239.79,239.74,9.79023435]
[1733515343185,6.40493435,239.82,239.71,2.1]
[1733515343382,6.40493435,239.82,239.72,7.44670893]
[1733515343583,8.50493435,239.82,239.72,6.40493435]
[1733515343786,2.0815,239.77,239.73,2.0818]
[1733515345183,6.40493435,239.78,239.7,1.2984]
[1733515345384,6.40493435,239.76,239.71,1.04180788]
[1733515345578,2.1,239.82,239.7,1.2984]
[1733515345579,6.40493435,239.8,239.7,7.70333435]
[1733515345784,2.0816,239.76,239.71,2.0819]
[1733515345979,6.40493435,239.8,239.71,2.0819]
[1733515346288,2.0816,239.75,239.71,2.0819]
[1733515346885,2.0816,239.75,239.7,7.70333435]
[1733515347184,2.0816,239.75,239.7,9.78533435]
[1733515347385,2.0818,239.73,239.7,1.2984]
[1733515350583,2.0818,239.73,239.7,7.70333435]
[1733515353188,2.0819,239.72,239.68,8.50493435]
[1733515354285,2.0819,239.72,239.68,10.58713435]
[1733515354689,6.40493435,239.76,239.64,2.6546]
[1733515354891,2.1,239.77,239.66,6.40493435]
[1733515354892,2.0821,239.69,239.66,6.40493435]
[1733515355790,2.0821,239.69,239.66,8.48733435]
[1733515355988,6.40493435,239.76,239.66,8.48733435]
[1733515356691,2.0818,239.73,239.66,8.48733435]
[1733515356896,6.40493435,239.76,239.66,8.48733435]
[1733515357695,2.0818,239.73,239.68,8.48703435]
[1733515357990,2.0818,239.73,239.68,6.40493435]
[1733515358191,2.0818,239.73,239.7,2.082]
[1733515358394,2.0817,239.75,239.7,6.40493435]
[1733515358591,2.1,239.81,239.72,6.40493435]
[1733515358797,8.50493435,239.81,239.72,6.40493435]
[1733515359193,8.50493435,239.81,239.73,2.0818]
[1733515360090,6.40493435,239.79,239.73,2.0818]
[1733515360489,8.50493435,239.81,239.73,2.0818]
[1733515360899,2.0813,239.79,239.73,2.0818]
[1733515361102,8.50493435,239.81,239.73,2.0818]
[1733515362194,2.0814,239.77,239.73,2.0818]
[1733515365906,6.40493435,239.75,239.67,8.48723435]
[1733515366405,6.40493435,239.73,239.67,2.0823]
[1733515366617,2.082,239.71,239.67,2.0823]
[1733515368101,2.0821,239.7,239.67,2.0823]
[1733515368705,2.1,239.76,239.65,1.3232]
[1733515368909,6.40493435,239.73,239.66,6.40493435]
[1733515369313,6.40493435,239.73,239.66,8.48733435]
[1733515369314,2.082,239.71,239.66,8.48733435]
[1733515369516,6.40493435,239.73,239.66,8.48733435]
[1733515370517,2.082,239.71,239.65,1.3232]
[1733515370713,6.40493435,239.73,239.65,1.3232]
[1733515371213,2.0822,239.69,239.65,3.4057]
[1733515372915,6.40493435,239.73,239.65,3.4057]
[1733515374724,2.0821,239.7,239.65,3.4057]
[1733515375323,2.0819,239.72,239.68,2.0822]
[1733515376321,2.0819,239.72,239.65,1.3232]
[1733515376322,2.0816,239.76,239.7,6.40493435]
[1733515376534,6.40493435,239.83,239.74,6.40493435]
[1733515376733,8.50493435,239.83,239.74,6.40493435]
[1733515377614,8.50493435,239.83,239.74,8.48653435]
[1733515377615,2.0811,239.81,239.74,8.48653435]
[1733515377819,8.50493435,239.83,239.74,8.48653435]
[1733515378022,2.6704,239.91,239.74,6.40493435]
[1733515378223,6.40493435,239.84,239.76,6.40493435]
[1733515378622,6.40493435,239.84,239.77,2.0813]
[1733515378623,2.0809,239.83,239.77,2.0813]
[1733515378822,6.40493435,239.84,239.77,2.0813]
[1733515379220,2.1,239.86,239.76,6.40493435]
[1733515379519,3.97875,239.85,239.79,2.0812]
[1733515380119,1.89795,239.85,239.8,2.0812]
[1733515380315,1.89795,239.85,239.8,8.48613435]
[1733515380619,1.89795,239.85,239.8,2.0812]
[1733515380817,2.0811,239.82,239.76,2.0815]
[1733515381419,2.0811,239.81,239.76,2.0815]
[1733515383726,2.0812,239.8,239.76,2.0815]
[1733515385025,2.0812,239.8,239.74,10.46793435]
[1733515385026,2.0814,239.77,239.74,6.1446]
[1733515385219,6.40493435,239.78,239.74,2.6757]
[1733515386121,2.0816,239.76,239.74,2.6757]
[1733515386521,2.0814,239.78,239.74,2.6757]
[1733515388224,2.0815,239.77,239.74,2.6757]
[1733515390326,2.0813,239.79,239.74,2.6757]
[1733515390530,6.40493435,239.8,239.74,2.6757]
[1733515391621,6.40493435,239.75,239.62,1.2743]
[1733515391827,6.40493435,239.73,239.65,2.08]
[1733515392025,6.40493435,239.71,239.55,43.36]
[1733515392224,2.0824,239.67,239.62,6.40493435]
[1733515392430,2.0824,239.67,239.63,2.08]
[1733515392729,6.40493435,239.69,239.56,2.6379]
[1733515393028,2.0825,239.66,239.6,6.40493435]
[1733515393528,2.0825,239.66,239.62,2.0827]
[1733515394029,2.08,239.75,239.65,2.0825]
[1733515394225,6.40493435,239.72,239.64,6.40493435]
[1733515394426,2.0821,239.69,239.64,6.40493435]
[1733515394625,2.0821,239.69,239.64,8.48743435]
[1733515395128,6.40493435,239.72,239.64,6.40493435]
[1733515395327,2.08,239.78,239.64,6.40493435]
[1733515395626,6.40493435,239.73,239.65,1.3028]
[1733515396627,2.0819,239.72,239.67,2.0823]
[1733515398830,1.3319,239.81,239.66,6.40493435]
[1733515399127,6.40493435,239.75,239.69,2.0821]
[1733515399325,6.40493435,239.75,239.67,2.08]
[1733515399929,2.0818,239.73,239.68,2.0822]
[1733515402035,2.0816,239.76,239.7,2.082]
[1733515402330,6.40493435,239.77,239.7,2.082]
[1733515402833,6.40493435,239.77,239.69,2.0821]
[1733515403830,2.08,239.79,239.72,2.0818]
[1733515404033,6.40493435,239.78,239.72,2.0818]
[1733515404433,2.0813,239.79,239.7,6.40493435]
[1733515404633,8.48623435,239.79,239.7,6.40493435]
[1733515405328,8.48623435,239.79,239.73,2.0817]
[1733515405531,8.48623435,239.79,239.72,2.08]
[1733515405933,2.0813,239.79,239.74,2.0817]
[1733515406132,8.48623435,239.79,239.74,2.0817]
[1733515406630,6.40493435,239.79,239.74,2.0817]
[1733515406830,2.0813,239.78,239.74,2.0817]
[1733515409138,6.40493435,239.79,239.74,2.0817]
[1733515409430,8.48623435,239.79,239.74,2.0817]
[1733515409624,8.48623435,239.79,239.75,2.0816]
[1733515410334,6.40493435,239.81,239.73,1.2883]
[1733515410527,6.40493435,239.82,239.73,1.2883]
[1733515411537,2.0812,239.81,239.76,2.0814]
[1733515412038,2.0812,239.81,239.77,2.0813]
[1733515412638,8.48613435,239.8,239.73,1.2883]
[1733515413236,8.48613435,239.8,239.77,2.0814]
[1733515413734,8.48613435,239.8,239.73,1.2883]
[1733515414542,8.48613435,239.8,239.76,2.0815]
[1733515419135,6.40493435,239.8,239.73,1.2883]
[1733515419445,2.0813,239.78,239.75,2.0816]
[1733515420251,6.40493435,239.82,239.76,2.0815]
[1733515420546,1.39637,239.92,239.75,6.40493435]
[1733515420745,6.40493435,239.83,239.75,6.40493435]
[1733515420947,8.48603435,239.81,239.77,2.0814]
[1733515421642,2.0812,239.8,239.74,1.3629]
[1733515421844,2.0812,239.8,239.76,2.0814]
[1733515425636,2.0812,239.8,239.74,1.3629]
[1733515425836,2.0812,239.8,239.77,2.0814]
[1733515426544,2.08,239.89,239.74,1.3629]
[1733515426743,6.40493435,239.83,239.78,2.0813]
[1733515427446,6.40493435,239.81,239.78,2.0813]
[1733515427750,8.48603435,239.81,239.77,4.1614]
[1733515428047,2.0811,239.81,239.77,4.1614]
[1733515428244,1.39637,239.92,239.77,2.08]
[1733515428448,1.39637,239.92,239.86,6.40493435]
[1733515428648,1.39637,239.92,239.88,6.40493435]
[1733515428945,1.39637,239.92,239.9,2.0803]
[1733515430150,1.39637,239.92,239.88,6.40493435]
[1733515430348,1.39637,239.92,239.89,2.0804]
[1733515431450,1.39637,239.92,239.91,2.0802]
[1733515431754,6.40493435,239.99,239.9,6.40493435]
[1733515432343,2.0797,239.97,239.91,2.0801]
[1733515432552,6.40493435,239.93,239.89,2.08]
[1733515432855,2.0803,239.91,239.89,2.08]
[1733515434650,6.40493435,239.95,239.89,2.08]
[1733515434948,2.0801,239.92,239.89,2.08]
[1733515435453,2.08,239.93,239.89,2.08]
[1733515438753,6.40493435,239.95,239.89,2.08]
[1733515438954,2.0801,239.92,239.89,2.08]
[1733515440154,6.40493435,239.91,239.79,8.48493435]
[1733515440353,6.40493435,239.86,239.79,2.08]
[1733515440855,2.081,239.83,239.79,2.08]
[1733515441154,2.081,239.83,239.79,2.80292]
[1733515441547,2.081,239.82,239.79,2.80292]
[1733515442848,1.3267,239.91,239.81,6.40493435]
[1733515443049,6.40493435,239.9,239.81,6.40493435]
[1733515443556,2.0807,239.86,239.81,6.40493435]
[1733515444660,2.0807,239.85,239.81,8.48593435]
[1733515444854,6.40493435,239.9,239.81,8.48593435]
[1733515445449,2.0805,239.88,239.82,2.0809]
[1733515445659,6.40493435,239.9,239.82,2.0809]
[1733515446458,2.0806,239.87,239.82,2.0809]
[1733515447157,6.40493435,239.9,239.83,6.40493435]
[1733515447359,2.0804,239.9,239.85,8.48563435]
[1733515447760,6.40493435,239.92,239.85,8.48563435]
[1733515447960,2.0804,239.89,239.84,4.1608]
[1733515449771,2.0804,239.89,239.85,2.0807]
[1733515449976,2.0804,239.89,239.84,2.08]
[1733515450177,6.40493435,239.92,239.84,2.08]
[1733515450572,6.40493435,239.9,239.84,2.08]
[1733515450772,2.0805,239.89,239.84,2.08]
[1733515450976,6.40493435,239.9,239.84,2.08]
[1733515452276,2.0806,239.87,239.84,2.08]
[1733515452468,6.40493435,239.9,239.84,2.08]
[1733515452668,2.0807,239.86,239.84,2.08]
[1733515453476,2.0806,239.87,239.84,2.08]
[1733515455270,2.08,239.96,239.84,2.08]
[1733515455472,2.0804,239.89,239.84,4.1608]
[1733515457576,8.48523435,239.91,239.84,2.08]
[1733515457788,6.40493435,239.89,239.84,2.08]
[1733515458077,6.40493435,239.89,239.82,2.08]
[1733515458485,2.0806,239.87,239.82,2.08]
[1733515459569,6.40493435,239.89,239.82,4.161]
[1733515459570,2.0806,239.86,239.82,4.161]
[1733515462082,2.0806,239.86,239.82,10.56593435]
[1733515463179,2.0806,239.86,239.82,4.161]
[1733515464475,2.0806,239.86,239.82,10.56593435]
[1733515465277,6.40493435,239.91,239.82,8.48493435]
[1733515465486,2.0807,239.85,239.82,2.08]
[1733515466092,2.0809,239.83,239.82,2.08]
[1733515466387,3.995,240.02,239.76,2.6941]
[1733515466388,6.40493435,239.85,239.77,2.08]
[1733515466587,6.40493435,239.85,239.76,3.482]
[1733515466890,2.08,239.89,239.76,2.08]
[1733515466891,2.0813,239.79,239.76,2.08]
[1733515467188,6.40493435,239.81,239.75,2.08]
[1733515468481,6.40493435,239.79,239.72,2.0819]
[1733515468685,6.40493435,239.79,239.72,4.49516]
[1733515469295,2.0814,239.77,239.72,4.49516]
[1733515469588,2.0814,239.77,239.73,6.40493435]
[1733515470286,2.0815,239.76,239.73,6.40493435]
[1733515472692,6.40493435,239.79,239.72,0.33326]
[1733515473186,6.40493435,239.81,239.72,6.73819435]
[1733515473489,6.40493435,239.81,239.72,8.81999435]
[1733515474789,2.0815,239.77,239.72,8.81999435]
[1733515476590,2.08,239.84,239.72,8.81999435]
[1733515476591,2.0815,239.76,239.72,8.81999435]
[1733515476795,2.0815,239.76,239.72,2.41506]
[1733515477295,2.0818,239.73,239.72,0.33326]
[1733515477996,8.48673435,239.73,239.72,0.33326]
[1733515480897,2.0818,239.73,239.72,0.33326]
[1733515482497,2.0817,239.75,239.72,0.33326]
[1733515482898,6.40493435,239.79,239.72,0.33326]
[1733515483700,6.40493435,239.81,239.73,2.0818]
[1733515484193,2.0815,239.76,239.72,0.33326]
[1733515485199,2.08,239.83,239.73,6.40493435]
[1733515485200,2.0814,239.77,239.73,6.40493435]
[1733515485599,2.0814,239.77,239.72,2.41506]
[1733515486797,2.0814,239.77,239.72,2.0818]
[1733515490804,2.0814,239.77,239.72,8.48673435]
[1733515491000,2.0812,239.8,239.74,8.48663435]
[1733515491205,6.40493435,239.85,239.76,6.40493435]
[1733515491705,2.0811,239.82,239.77,2.0814]
[1733515492110,6.40493435,239.85,239.76,6.40493435]
[1733515492304,2.0812,239.8,239.76,8.48643435]
[1733515496909,2.0812,239.8,239.76,2.0815]
[1733515499410,6.40493435,239.81,239.67,2.721]
[1733515499707,2.0815,239.77,239.72,6.40493435]
[1733515500111,6.40493435,239.81,239.72,6.40493435]
[1733515500413,2.0815,239.76,239.72,8.48673435]
[1733515500816,2.0817,239.75,239.71,4.1619]
[1733515501005,2.0817,239.75,239.67,2.721]
[1733515501006,6.40493435,239.75,239.67,2.721]
[1733515501205,6.40493435,239.75,239.67,1.32]
[1733515501611,2.0817,239.74,239.67,1.32]
[1733515501810,2.08,239.77,239.67,1.32]
[1733515501811,6.40493435,239.75,239.67,1.32]
[1733515502310,2.082,239.71,239.67,3.4023]
[1733515504111,2.082,239.71,239.68,6.40493435]
[1733515506913,6.40493435,239.75,239.68,6.40493435]
[1733515507215,2.082,239.7,239.67,1.32]
[1733515508216,2.0822,239.68,239.66,1.3312]
[1733515508518,6.40493435,239.73,239.64,6.40493435]
[1733515508717,6.40493435,239.71,239.65,1.04202977]
[1733515509013,6.40493435,239.69,239.6,6.40493435]
[1733515509218,6.40493435,239.67,239.61,2.712562]
[1733515509422,6.40493435,239.67,239.62,1.04217181]
[1733515509617,6.40493435,239.67,239.6,4.1629]
[1733515509810,6.40493435,239.67,239.61,2.71263626]
[1733515510017,6.40493435,239.67,239.62,1.0421507]
[1733515510218,6.40493435,239.67,239.6,2.0829]
[1733515510417,6.40493435,239.67,239.61,2.71277041]
[1733515510620,6.40493435,239.67,239.62,1.04214493]
[1733515510821,6.40493435,239.67,239.58,10.56793435]
[1733515511015,6.40493435,239.67,239.59,2.71296977]
[1733515511016,2.0827,239.63,239.59,2.71296977]
[1733515511217,6.40493435,239.65,239.6,1.04223731]
[1733515511413,6.40493435,239.63,239.55,2.6882]
[1733515511619,6.40493435,239.61,239.56,2.71303976]
[1733515511818,2.08,239.66,239.57,1.04234037]
[1733515512018,2.08,239.66,239.55,9.09313435]
[1733515512019,6.40493435,239.65,239.55,9.09313435]
[1733515512222,6.40493435,239.65,239.56,2.71221573]